bitfinex/quotes_ETHUSD_20251117
["timestamp","ask_amount","ask_price","bid_price","bid_amount"]
[1763403722845,0.4652,3061.2,3059.0,0.87025303]
[1763403723146,0.4652,3061.2,3059.0,0.720204]
[1763403723314,0.4652,3061.2,3059.0,1.27575703]
[1763403723546,0.4652,3061.2,3059.4,0.405504]
[1763403723872,0.4652,3061.2,3059.4,0.5736301]
[1763403724078,0.4652,3061.2,3059.2,0.405504]
[1763403724231,0.405504,3061.1,3058.8,0.87125303]
[1763403724432,0.405504,3061.1,3058.8,0.001]
[1763403724665,0.405504,3060.9,3058.8,0.001]
[1763403725066,0.405504,3060.7,3058.8,0.001]
[1763403725470,1.02506128,3061.6,3058.8,0.001]
[1763403725471,0.405504,3060.5,3058.8,0.001]
[1763403725874,0.4861,3060.4,3058.8,0.001]
[1763403726431,0.4861,3060.8,3059.0,0.405504]
[1763403727034,0.4861,3060.8,3058.8,0.001]
[1763403727738,0.4861,3060.8,3058.9,0.405504]
[1763403727964,0.405504,3060.7,3058.8,0.001]
[1763403728582,0.4861,3060.8,3058.4,0.001]
[1763403728583,0.1823,3058.9,3058.4,0.001]
[1763403728931,0.4861,3058.8,3058.4,0.001]
[1763403729572,0.1823,3058.9,3058.4,0.001]
[1763403729783,0.1823,3059.3,3058.4,0.001]
[1763403729946,0.4861,3058.8,3058.4,0.001]
[1763403731072,0.4861,3058.8,3056.8,0.001]
[1763403731073,0.405504,3058.7,3056.8,0.001]
[1763403731459,0.4861,3058.6,3056.8,0.001]
[1763403731750,0.1823,3056.9,3056.8,0.001]
[1763403732162,0.6684,3056.9,3056.8,0.001]
[1763403732483,0.4861,3057.5,3056.8,0.001]
[1763403736285,0.4861,3057.5,3056.4,0.001]
[1763403736286,0.405504,3057.4,3056.4,0.001]
[1763403736656,0.4861,3057.3,3056.4,0.001]
[1763403737054,0.405504,3057.2,3056.4,0.001]
[1763403737448,0.405504,3057.0,3056.4,0.001]
[1763403737649,0.4858,3056.9,3056.4,0.001]
[1763403737848,0.405504,3056.8,3056.4,0.001]
[1763403738043,0.4858,3056.7,3056.4,0.001]
[1763403739364,0.4858,3057.1,3056.4,0.001]
[1763403739562,0.4858,3056.7,3056.4,0.001]
[1763403739961,0.405504,3057.5,3056.4,0.001]
[1763403740192,0.4858,3057.2,3056.4,0.001]
[1763403740699,0.405504,3057.1,3056.4,0.001]
[1763403740989,0.4858,3057.2,3056.4,0.001]
[1763403741194,0.1823,3057.6,3056.4,0.001]
[1763403741195,0.405504,3057.0,3056.4,0.001]
[1763403741396,0.405504,3057.0,3054.0,0.1624]
[1763403741397,0.405504,3056.1,3054.0,0.1624]
[1763403741609,0.4858,3056.0,3054.0,0.1624]
[1763403741755,0.405504,3055.9,3054.0,0.1624]
[1763403742280,0.184,3056.2,3054.0,0.1624]
[1763403742281,0.405504,3055.7,3054.0,0.1624]
[1763403742758,0.405504,3055.5,3054.0,0.1624]
[1763403743273,0.4858,3055.4,3054.1,0.03274287]
[1763403743454,0.4858,3056.1,3054.0,0.4831]
[1763403743658,0.4858,3056.1,3054.1,0.405504]
[1763403743872,0.4858,3056.1,3054.1,0.726204]
[1763403744174,0.4858,3056.1,3054.2,0.3207]
[1763403744370,0.4858,3056.1,3054.3,0.405504]
[1763403744750,0.4858,3056.1,3054.0,0.1624]
[1763403745174,0.405504,3056.0,3054.0,0.1624]
[1763403745372,0.4858,3056.1,3054.2,0.405504]
[1763403745606,0.4858,3056.1,3054.3,0.3207]
[1763403746101,0.4858,3056.1,3054.4,0.43824365]
[1763403746315,0.184,3056.5,3054.4,0.405504]
[1763403746518,0.002,3056.1,3054.6,0.405504]
[1763403747014,0.002,3056.1,3054.7,0.3207]
[1763403747216,0.002,3056.1,3054.8,0.405504]
[1763403747367,0.4878,3056.1,3054.0,0.1634]
[1763403747570,0.4878,3056.1,3054.3,0.405504]
[1763403748094,0.4878,3056.1,3054.5,0.405504]
[1763403748293,0.4878,3056.1,3054.6,0.3207]
[1763403748966,0.4878,3056.1,3054.6,0.92664889]
[1763403749167,0.4878,3056.1,3054.5,0.90699264]
[1763403749777,0.4878,3056.1,3054.0,0.1634]
[1763403749778,0.405504,3056.0,3054.0,0.1634]
[1763403750072,0.405504,3056.0,3054.1,0.3207]
[1763403750293,0.4858,3055.9,3054.1,0.3207]
[1763403750697,0.4858,3055.9,3054.0,1.07039264]
[1763403750698,0.405504,3055.8,3054.0,0.1634]
[1763403751099,0.405504,3055.6,3054.0,0.1634]
[1763403751473,0.407504,3056.1,3054.0,0.1634]
[1763403751678,0.405504,3055.9,3054.0,1.07039264]
[1763403752316,0.4858,3055.8,3054.0,0.1634]
[1763403752519,0.405504,3055.7,3054.0,0.1634]
[1763403752714,0.405504,3055.7,3054.0,0.001]
[1763403753020,0.405504,3055.5,3054.0,0.001]
[1763403753507,0.4858,3055.4,3054.0,0.001]
[1763403754791,0.4858,3055.4,3054.1,0.1624]
[1763403755012,0.4858,3055.4,3054.0,0.001]
[1763403756282,0.1848,3054.1,3054.0,0.001]
[1763403756482,0.1848,3055.2,3054.0,0.001]
[1763403756726,0.1848,3054.6,3052.9,0.405504]
[1763403758420,0.1848,3055.2,3052.9,0.405504]
[1763403758622,0.1848,3055.2,3054.0,0.405504]
[1763403758832,0.1848,3055.2,3054.0,1.31249664]
[1763403759033,0.4758,3055.7,3054.0,2.24762593]
[1763403759240,0.1848,3055.6,3054.0,0.90699264]
[1763403759406,0.1848,3055.6,3053.3,0.90699264]
[1763403759601,0.4758,3055.5,3053.4,0.405504]
[1763403760403,0.4758,3055.5,3053.3,0.90699264]
[1763403760635,0.4758,3055.5,3053.4,0.89457889]
[1763403760808,0.4758,3055.5,3053.5,0.405504]
[1763403761008,0.4758,3055.5,3053.4,0.89457889]
[1763403761214,0.405504,3055.4,3053.3,0.90699264]
[1763403761428,0.405504,3055.4,3052.8,0.87404088]
[1763403761610,0.4758,3055.5,3052.0,2.31364261]
[1763403761611,0.1848,3053.4,3052.0,0.87404088]
[1763403761805,0.1848,3052.1,3051.0,0.87886566]
[1763403762108,0.4758,3053.3,3051.0,0.00482478]
[1763403762506,0.4758,3053.3,3051.7,8.03879629]
[1763403763046,0.4758,3053.3,3051.1,8.03879629]
[1763403763254,0.4758,3053.3,3051.2,0.90699264]
[1763403763544,0.4758,3053.3,3051.1,8.03879629]
[1763403763906,0.405504,3053.2,3051.0,0.00482478]
[1763403764317,0.405504,3053.0,3051.0,0.00482478]
[1763403764519,0.405504,3053.0,3052.9,0.001]
[1763403764721,0.405504,3053.3,3052.9,0.001]
[1763403764906,0.405504,3053.3,3052.5,0.001]
[1763403765104,0.4758,3053.2,3052.5,0.001]
[1763403765340,0.590304,3052.6,3052.5,0.001]
[1763403765561,0.1848,3052.6,3052.5,0.001]
[1763403765719,0.6606,3052.6,3052.5,0.001]
[1763403765919,0.1848,3053.4,3052.5,0.001]
[1763403766314,0.1848,3052.6,3052.5,0.001]
[1763403766515,0.1848,3050.8,3049.9,0.37677875]
[1763403766846,0.1848,3050.8,3048.7,3.04175857]
[1763403766847,0.1848,3050.0,3049.0,1.15780998]
[1763403767051,0.1848,3048.2,3047.0,9.65610551]
[1763403767253,0.1848,3048.2,3046.7,0.0070649]
[1763403767453,0.4758,3048.2,3046.7,0.0070649]
[1763403767612,0.4758,3048.2,3046.2,0.1667]
[1763403767813,0.4758,3048.2,3045.6,8.03879629]
[1763403767814,0.405504,3048.1,3045.6,1.65274837]
[1763403768039,1.46024266,3048.2,3045.8,9.69558498]
[1763403768221,0.4758,3048.4,3046.5,1.68422503]
[1763403768624,0.4758,3048.4,3046.6,2.138653]
[1763403768825,0.4758,3048.9,3046.7,0.90699264]
[1763403769156,0.4758,3049.4,3047.8,8.03879629]
[1763403769311,0.4758,3049.9,3047.1,8.03879629]
[1763403769509,0.4758,3049.9,3047.0,1.61730922]
[1763403769716,0.4758,3049.9,3047.0,0.4509]
[1763403769914,0.4758,3049.9,3046.6,1.687753]
[1763403769915,0.4758,3049.9,3048.0,0.90699264]
[1763403770138,0.4758,3049.9,3048.1,0.1317]
[1763403770754,0.4758,3049.9,3048.1,0.5826]
[1763403771327,0.01374,3050.0,3048.3,0.405504]
[1763403771514,0.01374,3050.0,3048.8,0.90699264]
[1763403771715,0.01374,3050.0,3048.4,0.4509]
[1763403771925,0.48954,3050.0,3048.4,0.4509]
[1763403772129,0.01374,3050.0,3048.4,0.4509]
[1763403772326,0.48954,3050.0,3048.4,0.4509]
[1763403772534,0.48954,3050.0,3048.1,0.1317]
[1763403772735,0.48954,3050.0,3048.2,0.4509]
[1763403772959,0.48954,3050.0,3048.6,0.405504]
[1763403772960,0.01374,3050.0,3048.6,0.405504]
[1763403773144,0.4758,3051.0,3048.8,0.405504]
[1763403773459,0.6606,3051.4,3048.8,0.405504]
[1763403773659,0.4758,3050.9,3048.8,0.4509]
[1763403774166,0.4758,3050.9,3048.2,0.405504]
[1763403774368,0.4758,3050.9,3048.6,0.405504]
[1763403774551,0.4758,3050.9,3048.8,0.405504]
[1763403774754,0.4758,3050.9,3049.0,0.405504]
[1763403774942,0.1848,3051.4,3049.0,0.405504]
[1763403775126,0.6606,3051.4,3049.1,0.4509]
[1763403775665,0.6606,3051.4,3049.2,0.405504]
[1763403776171,0.1848,3051.4,3049.6,1.31249664]
[1763403776388,0.4758,3051.3,3048.2,0.4509]
[1763403776526,0.405504,3051.2,3047.9,0.4509]
[1763403776726,2.32598418,3051.3,3046.6,1.687753]
[1763403776727,0.27314882,3051.1,3048.2,0.4509]
[1763403776957,0.405504,3051.1,3048.2,1.35789264]
[1763403777182,0.405504,3050.9,3048.2,1.35789264]
[1763403777325,0.405504,3050.9,3048.3,0.4509]
[1763403777531,0.405504,3050.7,3048.3,0.4509]
[1763403778073,0.91362488,3051.4,3048.3,0.4509]
[1763403778074,0.405504,3050.5,3048.3,0.4509]
[1763403778284,0.405504,3050.5,3048.1,0.1317]
[1763403778425,0.90699264,3051.3,3048.1,0.1317]
[1763403778426,0.405504,3050.3,3048.1,0.1317]
[1763403779065,0.405504,3050.1,3048.1,0.5826]
[1763403779430,0.405504,3049.9,3047.7,0.1317]
[1763403779969,0.405504,3049.7,3047.8,0.4509]
[1763403780352,0.6606,3049.6,3047.8,0.4509]
[1763403780769,0.6606,3049.6,3047.7,0.1317]
[1763403780770,0.4758,3049.5,3047.7,0.1317]
[1763403781101,0.4758,3049.5,3047.4,0.1317]
[1763403781102,0.405504,3049.4,3047.4,0.1317]
[1763403781465,0.4758,3049.3,3047.4,0.5826]
[1763403781669,0.405504,3049.5,3047.4,1.48959264]
[1763403782000,0.6606,3049.6,3047.5,1.40373889]
[1763403782199,0.4758,3049.5,3047.6,0.4509]
[1763403782672,0.1848,3049.6,3047.7,0.405504]
[1763403783005,0.002,3050.0,3047.9,8.03879629]
[1763403783186,0.002,3050.0,3048.6,0.90699264]
[1763403783516,0.4758,3049.9,3048.2,0.405504]
[1763403783661,0.002,3050.0,3048.7,0.4509]
[1763403784158,0.4758,3049.9,3048.1,0.4509]
[1763403784508,0.4758,3049.9,3048.0,0.80387963]
[1763403784509,0.4758,3049.9,3047.7,0.4509]
[1763403784656,0.4758,3049.9,3047.8,0.4509]
[1763403784860,0.4758,3049.9,3047.9,0.84896963]
[1763403785062,0.002,3050.0,3048.0,0.405504]
[1763403785401,0.4778,3050.0,3048.1,0.4509]
[1763403787626,1.31912888,3049.9,3047.3,0.4778]
[1763403787862,0.405504,3049.7,3047.7,0.4778]
[1763403788140,0.405504,3049.7,3046.8,8.03879629]
[1763403788141,0.405504,3049.8,3047.1,0.4778]
[1763403788290,0.405504,3049.6,3046.6,0.5445]
[1763403788490,1.31912888,3049.6,3046.6,0.5445]
[1763403788723,1.31912888,3049.6,3046.6,0.0667]
[1763403788724,0.405504,3049.4,3046.6,0.0667]
[1763403788917,0.405504,3049.4,3046.1,0.001]
[1763403788918,1.07740516,3049.4,3046.1,0.001]
[1763403789187,0.405504,3049.2,3046.1,1.61638674]
[1763403789489,8.44430029,3049.0,3046.2,0.4778]
[1763403789718,0.405504,3048.8,3046.3,0.03483084]
[1763403789920,0.405504,3048.8,3046.3,0.90819678]
[1763403790131,0.405504,3048.6,3046.4,0.4778]
[1763403790291,0.4628,3048.7,3046.4,0.4778]
[1763403790622,0.17819289,3049.5,3046.5,0.21442923]
[1763403790623,0.4628,3048.8,3046.5,0.21442923]
[1763403790817,0.405504,3048.7,3046.6,0.4778]
[1763403791137,0.17819289,3049.5,3046.6,0.4778]
[1763403791293,0.4628,3049.3,3047.1,0.405504]
[1763403791491,0.4628,3049.3,3047.2,0.4778]
[1763403791687,0.4628,3049.3,3047.4,0.405504]
[1763403791896,0.02523,3049.6,3047.6,1.31249664]
[1763403792428,0.02523,3049.6,3047.8,0.405504]
[1763403792629,0.48803,3049.6,3047.8,0.81907885]
[1763403792835,0.48803,3049.6,3047.8,0.4778]
[1763403793138,0.48803,3049.6,3047.3,0.0667]
[1763403793139,0.02523,3049.6,3048.0,1.31249664]
[1763403793291,0.02523,3049.6,3048.1,0.4778]
[1763403794594,0.4628,3049.5,3047.6,0.4778]
[1763403795321,0.02523,3049.6,3048.0,8.03879629]
[1763403795547,0.02523,3049.6,3048.2,0.405504]
[1763403795754,0.02523,3049.6,3048.1,2.18867227]
[1763403795933,0.02523,3049.6,3048.2,0.4778]
[1763403796553,0.002,3050.0,3048.2,0.4778]
[1763403796751,0.002,3050.0,3048.3,0.405504]
[1763403796959,0.002,3050.0,3048.4,0.24846332]
[1763403797252,0.4628,3049.9,3048.3,0.4778]
[1763403797753,0.4628,3049.9,3047.9,0.4623]
[1763403797920,0.405504,3049.8,3047.9,0.4623]
[1763403798111,0.4628,3049.9,3047.9,0.4623]
[1763403798308,0.4601,3049.8,3047.9,0.4623]
[1763403798955,0.407504,3050.0,3048.1,0.90699264]
[1763403798956,0.002,3050.0,3048.1,0.90699264]
[1763403799159,0.002,3050.0,3048.2,1.80293329]
[1763403799546,0.002,3050.0,3048.3,0.4623]
[1763403799971,0.002,3050.0,3048.4,0.1317]
[1763403800158,0.002,3050.0,3048.5,0.4623]
[1763403800361,0.4601,3049.9,3048.5,0.4623]
[1763403800973,0.002,3050.0,3048.6,0.405504]
[1763403801135,0.002,3050.0,3049.9,0.1492]
[1763403801337,0.09168,3051.7,3049.9,0.1492]
[1763403801567,0.4601,3051.6,3049.9,0.6115]
[1763403801882,0.002,3050.4,3050.0,0.405504]
[1763403802037,0.002,3050.4,3050.0,0.4623]
[1763403802637,0.002,3050.4,3049.2,0.1492]
[1763403802838,0.002,3050.4,3049.4,0.405504]
[1763403803042,0.09168,3051.7,3050.4,0.405504]
[1763403803276,1.03175409,3052.5,3050.4,0.405504]
[1763403803277,0.6449,3052.5,3050.9,0.90699264]
[1763403803486,0.6449,3052.5,3050.3,0.17998366]
[1763403803487,0.4601,3052.4,3050.6,0.4623]
[1763403803779,0.4601,3052.4,3050.3,0.1472]
[1763403804169,0.405504,3052.3,3050.3,0.1472]
[1763403804375,0.4601,3052.2,3050.3,0.1472]
[1763403804557,0.4601,3052.2,3049.6,0.4623]
[1763403804756,0.4601,3052.2,3049.0,8.44430029]
[1763403804757,1.25245809,3052.1,3049.7,0.4623]
[1763403804965,1.31107385,3052.0,3049.7,1.36929264]
[1763403805147,0.63135581,3052.0,3049.8,0.4623]
[1763403805347,0.405504,3051.8,3049.8,0.4623]
[1763403805589,0.4601,3051.9,3049.9,0.1452]
[1763403805996,0.4601,3051.8,3050.3,0.90699264]
[1763403806293,0.405504,3051.7,3049.9,0.1452]
[1763403806498,0.1862,3050.0,3048.7,0.1492]
[1763403806704,0.1862,3050.0,3048.3,0.4623]
[1763403806909,0.1862,3050.0,3048.5,0.4623]
[1763403807394,0.4601,3049.9,3048.6,0.03280194]
[1763403807621,0.4601,3049.9,3048.3,0.4623]
[1763403807622,0.1862,3050.5,3048.5,8.50109629]
[1763403807897,0.1862,3050.5,3048.6,0.86327963]
[1763403808101,0.4601,3050.4,3048.5,0.4623]
[1763403809301,0.4601,3050.4,3048.6,0.90699264]
[1763403809500,0.91565409,3051.2,3049.2,1.31249664]
[1763403809501,0.0687,3051.2,3049.2,1.31249664]
[1763403809854,0.0687,3051.2,3049.8,0.90699264]
[1763403810056,0.0687,3051.2,3049.8,1.80157153]
[1763403810298,0.4601,3051.1,3049.6,0.1472]
[1763403810670,0.0687,3051.2,3049.7,0.4623]
[1763403811288,0.5288,3051.2,3049.7,0.4623]
[1763403812003,0.0687,3051.2,3049.7,0.4623]
[1763403812774,0.5288,3051.2,3049.7,0.4623]
[1763403813265,0.5288,3051.2,3050.0,0.0008]
[1763403813502,0.405504,3051.1,3050.0,0.0008]
[1763403813713,0.1862,3050.1,3050.0,0.0008]
[1763403814064,0.6463,3050.1,3050.0,0.0008]
[1763403814561,0.4601,3050.5,3050.0,0.0008]
[1763403815378,0.405504,3050.4,3050.0,0.0008]
[1763403815900,0.4544,3050.3,3050.0,0.0008]
[1763403817557,0.4544,3050.3,3047.9,0.4575]
[1763403817558,0.405504,3050.2,3047.9,0.4575]
[1763403817763,0.405504,3050.2,3047.3,0.5242]
[1763403817958,0.405504,3050.0,3047.3,0.5242]
[1763403818193,0.4544,3049.9,3047.3,0.5242]
[1763403818710,0.405504,3049.8,3047.3,0.5242]
[1763403819173,0.405504,3049.6,3047.3,0.5242]
[1763403819576,0.405504,3049.4,3047.9,0.001]
[1763403820104,1.52526931,3050.0,3047.9,0.001]
[1763403820105,0.64669829,3048.0,3047.9,0.001]
[1763403820304,0.67831522,3049.1,3047.9,0.001]
[1763403820505,0.405504,3049.2,3047.9,0.001]
[1763403820798,0.405504,3049.4,3047.9,0.001]
[1763403821315,0.4544,3049.3,3047.9,0.001]
[1763403821609,0.405504,3049.2,3047.9,0.001]
[1763403821966,0.4544,3049.1,3047.9,0.001]
[1763403822194,0.4544,3049.8,3047.9,0.001]
[1763403822595,0.405504,3049.7,3047.9,0.001]
[1763403822971,0.4544,3049.6,3047.9,0.001]
[1763403823166,0.405504,3049.5,3047.9,0.001]
[1763403823365,0.4544,3049.6,3047.9,0.001]
[1763403823606,0.1963,3050.1,3047.9,0.001]
[1763403823607,0.1963,3050.1,3047.9,0.4585]
[1763403823804,0.4544,3050.0,3047.9,0.4585]
[1763403824207,0.1963,3050.1,3047.9,0.4585]
[1763403824572,0.859904,3050.0,3047.9,0.4585]
[1763403824971,0.4544,3049.9,3047.9,0.4585]
[1763403825198,0.405504,3049.8,3047.9,0.4585]
[1763403825379,0.405504,3049.6,3047.9,0.4585]
[1763403825810,0.405504,3049.4,3047.9,0.4585]
[1763403826221,0.4544,3049.3,3047.9,0.001]
[1763403826706,0.405504,3049.2,3047.9,0.001]
[1763403826914,0.4544,3049.3,3047.9,0.001]
[1763403827121,0.405504,3049.7,3047.9,0.4585]
[1763403827706,0.405504,3050.0,3047.9,0.4585]
[1763403827907,0.405504,3049.6,3047.9,0.4585]
[1763403828127,0.405504,3050.0,3047.9,0.4585]
[1763403828419,0.859904,3050.0,3047.9,0.4585]
[1763403828772,0.4544,3049.9,3047.9,0.4585]
[1763403828973,0.4544,3049.9,3048.0,0.20868831]
[1763403829172,0.1963,3050.1,3048.0,0.20868831]
[1763403829376,0.1963,3050.1,3048.1,0.529]
[1763403829908,0.6507,3050.1,3048.1,0.529]
[1763403831316,0.4544,3050.0,3048.1,0.529]
[1763403831683,0.4544,3050.0,3048.2,0.405504]
[1763403831882,0.1963,3050.1,3048.2,0.405504]
[1763403832089,0.1963,3050.1,3048.4,0.405504]
[1763403832302,0.002,3050.2,3048.6,0.405504]
[1763403832752,0.002,3050.2,3048.7,0.4575]
[1763403832950,0.002,3050.2,3049.1,0.90699264]
[1763403833121,0.002,3050.2,3049.2,1.03478414]
[1763403833455,0.002,3050.2,3050.1,0.1472]
[1763403833655,0.002,3050.2,3050.1,0.6047]
[1763403833857,0.002,3050.2,3049.9,0.1472]
[1763403834068,0.002,3050.2,3049.3,0.1472]
[1763403834250,0.1983,3050.2,3049.3,0.1472]
[1763403834454,0.1983,3050.2,3048.7,0.90699264]
[1763403834627,0.6527,3050.2,3048.9,0.1472]
[1763403834821,0.002,3050.2,3048.9,0.1472]
[1763403835064,0.002,3050.2,3049.0,0.4575]
[1763403835263,0.1983,3050.2,3048.9,0.1472]
[1763403835463,0.6527,3050.2,3048.9,0.1472]
[1763403836238,0.6527,3050.2,3048.9,0.6047]
[1763403836641,0.6527,3050.2,3049.0,0.4575]
[1763403836642,0.1983,3050.2,3049.0,0.4575]
[1763403839492,0.002,3050.2,3049.0,0.4575]
[1763403840245,0.4564,3050.2,3048.9,0.1472]
[1763403840584,0.1963,3050.1,3048.1,0.0715]
[1763403840889,0.601804,3050.1,3048.3,0.4575]
[1763403841042,0.4544,3050.0,3048.3,0.4575]
[1763403841243,0.1963,3050.1,3048.3,0.4575]
[1763403841480,0.002,3050.2,3048.5,0.405504]
[1763403841681,0.1983,3050.2,3048.5,0.405504]
[1763403841867,0.1983,3050.2,3048.6,0.4575]
[1763403842385,0.4544,3050.1,3048.1,0.0715]
[1763403842564,0.4544,3050.1,3048.2,0.3144719]
[1763403842772,0.1983,3050.2,3048.3,0.43830917]
[1763403842944,0.1983,3050.2,3048.5,0.405504]
[1763403843149,0.6527,3050.2,3048.5,0.405504]
[1763403843378,0.6527,3050.2,3048.7,0.405504]
[1763403843379,0.002,3050.2,3048.7,0.405504]
[1763403843545,0.002,3050.2,3048.9,0.405504]
[1763403843971,0.002,3050.2,3049.0,0.4575]
[1763403844176,0.1983,3050.2,3049.0,0.4575]
[1763403844378,0.4544,3050.1,3048.3,0.4575]
[1763403844594,0.4544,3050.1,3048.1,0.0715]
[1763403844595,0.4544,3050.1,3048.4,0.4575]
[1763403844796,0.405504,3050.0,3048.1,0.0715]
[1763403845112,0.4544,3049.9,3048.1,0.0715]
[1763403845263,0.4544,3049.9,3048.2,0.4575]
[1763403847761,0.4544,3049.9,3048.1,0.0715]
[1763403849220,0.405504,3049.8,3048.0,0.001]
[1763403849669,0.405504,3049.6,3048.0,0.001]
[1763403850003,0.405504,3049.4,3048.0,0.001]
[1763403850502,0.84695409,3049.5,3048.0,0.001]
[1763403850503,0.4996,3049.3,3048.0,0.001]
[1763403850672,0.405504,3049.2,3048.0,0.001]
[1763403851003,0.4996,3049.3,3048.1,0.0715]
[1763403852110,0.4996,3049.8,3048.2,0.4694]
[1763403852315,0.4996,3049.9,3048.2,0.4694]
[1763403852801,0.405504,3049.8,3048.2,0.4694]
[1763403853200,0.4996,3049.7,3048.3,0.4694]
[1763403853627,1.18226228,3049.7,3048.1,0.0715]
[1763403853937,0.1973,3048.4,3048.0,0.001]
[1763403854438,0.4996,3048.3,3048.0,0.001]
[1763403854644,0.1973,3048.7,3048.0,0.001]
[1763403855134,0.405504,3049.8,3048.0,0.001]
[1763403855338,0.1973,3048.9,3048.1,0.1016]
[1763403855504,0.1973,3048.9,3048.0,0.001]
[1763403855699,0.4996,3048.8,3048.0,0.001]
[1763403855906,0.1973,3049.3,3048.1,0.1016]
[1763403856635,0.1973,3049.3,3048.2,0.4694]
[1763403856835,0.1973,3049.3,3048.1,0.1016]
[1763403857140,0.1973,3049.3,3048.2,0.4694]
[1763403857341,0.1973,3049.3,3048.1,0.1016]
[1763403857544,0.1882,3049.6,3048.3,0.4571]
[1763403858105,0.6803,3049.6,3048.3,0.4571]
[1763403858302,0.6803,3049.6,3048.1,0.1016]
[1763403858503,0.4921,3049.5,3048.1,0.1016]
[1763403858701,0.405504,3049.4,3048.0,0.001]
[1763403859024,1.17409662,3049.5,3048.1,0.1016]
[1763403859231,0.405504,3049.2,3048.0,0.001]
[1763403859431,0.405504,3048.9,3048.0,0.001]
[1763403859833,1.33905409,3048.8,3048.0,0.001]
[1763403860028,0.405504,3048.6,3048.0,0.001]
[1763403860255,2.19550652,3048.7,3048.0,0.001]
[1763403860463,1.17409662,3048.6,3048.0,0.001]
[1763403860664,0.4921,3048.6,3048.0,0.001]
[1763403860865,0.4921,3048.5,3048.0,0.001]
[1763403861067,0.17445581,3048.7,3048.0,0.001]
[1763403861272,0.17445581,3048.7,3048.1,0.1016]
[1763403861440,0.4921,3048.7,3048.0,0.001]
[1763403862154,0.4921,3049.1,3048.0,0.001]
[1763403863469,0.405504,3049.0,3048.0,0.001]
[1763403863794,2.15945073,3048.7,3048.0,0.001]
[1763403863935,0.68067607,3048.6,3048.0,0.001]
[1763403864143,0.405504,3048.4,3047.9,0.001]
[1763403864384,0.1882,3048.0,3047.9,0.001]
[1763403864701,0.6803,3048.3,3047.9,0.001]
[1763403864863,0.4921,3048.0,3047.9,0.001]
[1763403867582,0.1882,3048.3,3047.9,0.001]
[1763403867742,0.4921,3048.0,3047.9,0.001]
[1763403868361,0.405504,3047.9,3047.6,0.001]
[1763403868557,0.405504,3047.9,3045.5,1.68120138]
[1763403868795,0.405504,3047.7,3045.7,1.61271073]
[1763403868942,0.4921,3047.8,3045.9,1.62451303]
[1763403869266,0.405504,3047.5,3045.6,1.65274837]
[1763403869474,0.405504,3047.5,3045.0,1.69208053]
[1763403869475,1.31249664,3047.1,3045.0,1.69208053]
[1763403869651,1.31249664,3047.1,3043.1,0.16394892]
[1763403869652,1.75632486,3047.0,3045.2,1.66356719]
[1763403869851,1.5683946,3047.0,3045.1,2.12498167]
[1763403870054,1.35968755,3046.9,3045.1,2.12498167]
[1763403870295,0.405504,3046.8,3045.0,1.69208053]
[1763403870570,0.4921,3046.8,3045.0,2.14918053]
[1763403870779,0.1882,3046.9,3045.2,1.66356719]
[1763403870961,0.4921,3047.3,3045.6,1.65274837]
[1763403870962,0.6803,3047.3,3045.6,1.65274837]
[1763403871158,1.03515409,3048.3,3045.9,2.03001703]
[1763403871159,0.6788685,3048.1,3045.9,2.03001703]
[1763403871343,0.1882,3047.9,3045.9,2.03001703]
[1763403871548,0.1882,3047.9,3046.1,1.61538674]
[1763403871784,0.4921,3047.8,3046.1,1.61538674]
[1763403872080,0.4921,3047.8,3046.3,1.66649228]
[1763403872252,0.4921,3048.2,3046.3,1.31249664]
[1763403872454,0.6803,3048.6,3046.7,2.04253793]
[1763403872655,0.6803,3048.6,3046.7,0.405504]
[1763403872849,0.6803,3048.6,3046.9,0.405504]
[1763403873186,0.4921,3048.5,3046.8,0.4571]
[1763403874402,0.4921,3048.5,3046.5,0.405504]
[1763403874403,0.4921,3048.4,3046.4,0.4571]
[1763403874575,0.4921,3048.4,3046.4,0.70073602]
[1763403874775,0.4921,3048.4,3046.4,0.4571]
[1763403875359,0.4921,3048.4,3046.0,0.1482]
[1763403875360,1.39909264,3048.4,3046.0,0.1482]
[1763403875664,0.67928116,3048.3,3046.1,0.4654]
[1763403875867,1.15198116,3048.3,3046.1,0.4654]
[1763403876062,0.67859738,3048.2,3046.1,0.4654]
[1763403876262,0.4727,3048.1,3046.8,0.001]
[1763403876483,1.31249664,3048.0,3046.8,0.001]
[1763403876682,0.67928116,3047.9,3046.8,0.001]
[1763403876882,0.4727,3047.9,3046.8,0.001]
[1763403877106,0.69688738,3047.8,3046.8,0.001]
[1763403877610,0.4727,3047.7,3046.8,0.001]
[1763403879673,0.22418738,3047.8,3046.8,0.001]
[1763403879983,0.6556,3048.0,3046.8,0.001]
[1763403880168,0.1829,3048.0,3046.8,0.4664]
[1763403880366,0.4727,3048.4,3046.9,0.405504]
[1763403880579,0.4727,3048.4,3046.8,0.4664]
[1763403880801,0.1882,3048.6,3046.9,0.405504]
[1763403880969,0.1882,3048.6,3046.9,1.31249664]
[1763403881175,0.002,3049.1,3047.4,1.31249664]
[1763403881616,0.4747,3049.1,3047.5,0.5908]
[1763403882033,0.4747,3049.1,3047.6,0.4654]
[1763403882329,0.4747,3049.1,3047.2,0.1254]
[1763403882634,0.4747,3049.1,3047.3,9.44548264]
[1763403882828,0.4747,3049.1,3047.4,0.95708826]